{"text_format":"1","workbook":"xlsx","n_sheets":1,"sheets":["様式"],"not_rendered":{"charts":0,"images":0,"macros":1,"external_links":0,"defined_names":2,"comments":0,"pivot_tables":0},"unopened":[],"bounds":{"document_bytes":16777216,"sheet_cells":100000,"rows_first":2000,"rows_last":500,"rows_between":2000,"halvings":0,"cell_chars":16384,"cell_head_chars":4096},"cells_cut":0,"cells_raw":0,"read":"whole","date_system":"1900"}

{"sheet":"様式","index":0,"n_rows":120,"n_cols":24,"rows_kept":120,"cut":false,"hidden":false,"merged":[[2,0,2,10],[3,15,5,16],[4,0,4,2],[4,3,4,9],[5,0,5,2],[5,3,5,9],[8,13,10,13],[9,5,10,6],[9,7,10,7],[9,8,10,8],[9,11,10,11],[9,12,10,12],[7,0,7,2],[7,4,7,6],[8,0,10,0],[8,1,10,1],[8,2,10,2],[8,3,8,4],[8,5,8,8],[11,0,14,0],[11,1,14,1],[11,2,14,2],[11,3,12,3],[11,4,12,4],[11,9,14,9],[11,10,14,10],[8,9,8,10],[8,11,8,12],[14,3,14,4],[11,13,14,13],[13,3,13,4],[13,5,14,5],[13,6,14,6],[13,7,14,7],[13,8,14,8],[13,11,14,11],[13,12,14,12],[15,0,18,0],[15,1,18,1],[15,2,18,2],[15,13,18,13],[17,3,17,4],[17,5,18,5],[17,6,18,6],[17,7,18,7],[17,8,18,8],[17,11,18,11],[17,12,18,12],[18,3,18,4],[15,3,16,3],[15,4,16,4],[15,9,18,9],[15,10,18,10],[19,13,22,13],[21,3,21,4],[21,5,22,5],[21,6,22,6],[21,7,22,7],[21,8,22,8],[21,11,22,11],[21,12,22,12],[22,3,22,4],[19,3,20,3],[19,4,20,4],[19,9,22,9],[23,0,23,2],[23,4,23,6],[24,0,26,0],[24,1,26,1],[24,2,26,2],[24,3,24,4],[24,5,24,8],[19,10,22,10],[24,9,24,10],[19,0,22,0],[19,1,22,1],[19,2,22,2],[24,13,26,13],[25,5,26,6],[25,7,26,7],[25,8,26,8],[25,11,26,11],[25,12,26,12],[27,0,30,0],[27,1,30,1],[27,2,30,2],[27,3,28,3],[27,4,28,4],[27,9,30,9],[27,10,30,10],[30,3,30,4],[24,11,24,12],[27,13,30,13],[29,3,29,4],[29,5,30,5],[29,6,30,6],[29,7,30,7],[29,8,30,8],[29,11,30,11],[29,12,30,12],[35,0,38,0],[35,1,38,1],[35,2,38,2],[35,3,36,3],[35,4,36,4],[35,9,38,9],[35,10,38,10],[31,0,34,0],[31,1,34,1],[31,2,34,2],[31,3,32,3],[31,4,32,4],[31,9,34,9],[38,3,38,4],[35,13,38,13],[33,12,34,12],[34,3,34,4],[31,10,34,10],[31,13,34,13],[33,3,33,4],[33,5,34,5],[33,6,34,6],[33,7,34,7],[33,8,34,8],[33,11,34,11],[37,3,37,4],[37,5,38,5],[37,6,38,6],[37,7,38,7],[37,8,38,8],[37,11,38,11],[37,12,38,12],[39,0,39,2],[39,4,39,6],[40,0,42,0],[40,1,42,1],[40,2,42,2],[40,3,40,4],[40,5,40,8],[40,9,40,10],[40,11,40,12],[40,13,42,13],[41,5,42,6],[41,7,42,7],[41,8,42,8],[41,11,42,11],[41,12,42,12],[43,0,46,0],[43,1,46,1],[43,2,46,2],[43,3,44,3],[43,4,44,4],[43,9,46,9],[43,10,46,10],[43,13,46,13],[45,3,45,4],[45,5,46,5],[45,6,46,6],[45,7,46,7],[45,8,46,8],[45,11,46,11],[45,12,46,12],[46,3,46,4],[47,0,50,0],[47,1,50,1],[47,2,50,2],[47,3,48,3],[47,4,48,4],[47,9,50,9],[47,10,50,10],[47,13,50,13],[49,3,49,4],[49,5,50,5],[49,6,50,6],[49,7,50,7],[49,8,50,8],[49,11,50,11],[49,12,50,12],[50,3,50,4],[51,0,54,0],[51,1,54,1],[51,2,54,2],[51,3,52,3],[51,4,52,4],[51,9,54,9],[51,10,54,10],[51,13,54,13],[53,3,53,4],[53,5,54,5],[53,6,54,6],[53,7,54,7],[53,8,54,8],[53,11,54,11],[53,12,54,12],[54,3,54,4],[55,0,55,2],[55,4,55,6],[56,0,58,0],[56,1,58,1],[56,2,58,2],[56,3,56,4],[56,5,56,8],[56,9,56,10],[56,11,56,12],[56,13,58,13],[57,5,58,6],[57,7,58,7],[57,8,58,8],[57,11,58,11],[57,12,58,12],[59,0,62,0],[59,1,62,1],[59,2,62,2],[59,3,60,3],[59,4,60,4],[59,9,62,9],[59,10,62,10],[59,13,62,13],[61,3,61,4],[61,5,62,5],[61,6,62,6],[61,7,62,7],[61,8,62,8],[61,11,62,11],[61,12,62,12],[62,3,62,4],[63,0,66,0],[63,1,66,1],[63,2,66,2],[63,3,64,3],[63,4,64,4],[63,9,66,9],[63,10,66,10],[63,13,66,13],[65,3,65,4],[65,5,66,5],[65,6,66,6],[65,7,66,7],[65,8,66,8],[65,11,66,11],[65,12,66,12],[66,3,66,4],[67,0,70,0],[67,1,70,1],[67,2,70,2],[67,3,68,3],[67,4,68,4],[67,9,70,9],[67,10,70,10],[67,13,70,13],[69,3,69,4],[69,5,70,5],[69,6,70,6],[69,7,70,7],[69,8,70,8],[69,11,70,11],[69,12,70,12],[70,3,70,4],[71,0,71,2],[71,4,71,6],[72,0,74,0],[72,1,74,1],[72,2,74,2],[72,3,72,4],[72,5,72,8],[72,9,72,10],[72,11,72,12],[72,13,74,13],[73,5,74,6],[73,7,74,7],[73,8,74,8],[73,11,74,11],[73,12,74,12],[75,0,78,0],[75,1,78,1],[75,2,78,2],[75,3,76,3],[75,4,76,4],[75,9,78,9],[75,10,78,10],[75,13,78,13],[77,3,77,4],[77,5,78,5],[77,6,78,6],[77,7,78,7],[77,8,78,8],[77,11,78,11],[77,12,78,12],[78,3,78,4],[79,0,82,0],[79,1,82,1],[79,2,82,2],[79,3,80,3],[79,4,80,4],[79,9,82,9],[79,10,82,10],[79,13,82,13],[81,3,81,4],[81,5,82,5],[81,6,82,6],[81,7,82,7],[81,8,82,8],[81,11,82,11],[81,12,82,12],[82,3,82,4],[83,0,86,0],[83,1,86,1],[83,2,86,2],[83,3,84,3],[83,4,84,4],[83,9,86,9],[83,10,86,10],[83,13,86,13],[85,3,85,4],[85,5,86,5],[85,6,86,6],[85,7,86,7],[85,8,86,8],[85,11,86,11],[85,12,86,12],[86,3,86,4],[87,0,87,2],[87,4,87,6],[88,0,90,0],[88,1,90,1],[88,2,90,2],[88,3,88,4],[88,5,88,8],[88,9,88,10],[88,11,88,12],[88,13,90,13],[89,5,90,6],[89,7,90,7],[89,8,90,8],[89,11,90,11],[89,12,90,12],[91,0,94,0],[91,1,94,1],[91,2,94,2],[91,3,92,3],[91,4,92,4],[91,9,94,9],[91,10,94,10],[91,13,94,13],[93,3,93,4],[93,5,94,5],[93,6,94,6],[93,7,94,7],[93,8,94,8],[93,11,94,11],[93,12,94,12],[94,3,94,4],[95,13,98,13],[97,3,97,4],[97,5,98,5],[97,6,98,6],[97,7,98,7],[97,8,98,8],[97,11,98,11],[97,12,98,12],[98,3,98,4],[103,4,103,6],[104,0,106,0],[104,1,106,1],[104,2,106,2],[104,3,104,4],[104,5,104,8],[104,9,104,10],[104,11,104,12],[95,0,98,0],[95,1,98,1],[95,2,98,2],[95,3,96,3],[95,4,96,4],[95,9,98,9],[95,10,98,10],[104,13,106,13],[105,5,106,6],[105,7,106,7],[105,8,106,8],[105,11,106,11],[105,12,106,12],[99,0,102,0],[99,1,102,1],[99,2,102,2],[99,3,100,3],[99,4,100,4],[99,9,102,9],[99,10,102,10],[99,13,102,13],[101,3,101,4],[101,5,102,5],[101,6,102,6],[101,7,102,7],[101,8,102,8],[101,11,102,11],[101,12,102,12],[102,3,102,4],[99,12,100,12],[103,0,103,2],[107,0,110,0],[107,1,110,1],[107,2,110,2],[107,3,108,3],[107,4,108,4],[107,9,110,9],[107,10,110,10],[107,13,110,13],[109,3,109,4],[109,5,110,5],[109,6,110,6],[109,7,110,7],[109,8,110,8],[109,11,110,11],[109,12,110,12],[110,3,110,4],[112,0,112,2],[112,4,112,6],[113,0,115,0],[113,1,115,1],[113,2,115,2],[113,3,113,4],[113,5,113,8],[113,9,113,10],[113,11,113,12],[113,13,115,13],[114,5,115,6],[114,7,115,7],[114,8,115,8],[114,11,115,11],[114,12,115,12],[116,0,119,0],[116,1,119,1],[116,2,119,2],[116,3,117,3],[116,4,117,4],[116,9,119,9],[116,10,119,10],[116,13,119,13],[118,3,118,4],[118,5,119,5],[118,6,119,6],[118,7,119,7],[118,8,119,8],[118,11,119,11],[118,12,119,12],[119,3,119,4]]}
[]
[]
["主要事務事業戦略シート"]
[]
["局・区の使命",null,null,"こどもを産み育てたい、こどもがここで育ちたいと思うまち「ちば」の実現に向け、すべての子育て家庭への支援の充実と、すべての子ども・若者が健やかに成長できる環境の整備に取り組みます。"]
["事業選択・重点化・見直しの考え方",null,null,"子育て施策のニーズが多様化する中、待機児童対策及び子どもの家庭養育の推進を重点的に行うため、より効果が高い事業に行政資源をスライドさせる。\n重点化する事業：待機児童対策（保育所等の施設整備、保育の質の確保、保育士の確保等）、子どもルームの待機児童対策、児童相談所体制強化、家庭的養護の推進\n見直しする(予定）の事業：子どもルーム運営・整備事業(委託先の多様化、指導員処遇等）"]
[]
["施策",null,null,"2-2-1","子育て支援の充実"]
["No.","新規","事務事業（業務）名","事務事業（業務）概要",null,"現状分析",null,null,null,"課題抽出",null,"今後の方向性",null,"所管課"]
[null,null,null,"目標（目的）","主な内容","事務事業（業務）に\n必要な行政資源",null,"コスト換算\n（単位：百万円）","行政コストの合計額\n（単位：百万円）","主な実績・効果","分析・評価","改善・改革の\n手法","今後の方向性"]
[null,null,null,"【（事務事業（業務）を行い）誰（何）が、どのような状態になることを目指すのか】","【サービス等の提供内容や提供先】",null,null,null,null,"【利用者数・件数等】","【現在どのような状態で、どのような課題があるのか】"]
["１",null,"子ども・子育て支援新制度給付対象施設の整備","待機児童を解消するために、千葉市こどもプラン等に基づき、計画的に施設等の整備行う。","民間保育園等の整備事業者に対し助成する。","ヒト","職員5.00人\n（正規5.00人）",43,{"$f":"SUM(H12:H15)","v":1091},"整備実績\n\n・民間保育園\n　新設7園、定員増1園\n・認定こども園　12園\n・小規模保育事業　14園\n・認可外保育施設の認可化\n                                6園\n・事業所内保育事業　3園\n・その他の定員増等　8園\n\n（平成28年度）\n","2年連続で待機児童が発生したことを受け、即効性のある小規模保育所新設を拡充するが、中長期的には少子化の進行は不可避であることから、既存施設を最大限活用した整備を基本とする必要がある。\n\n・H29.4.1待機児童数　48人(+39)、入所待ち599人（▲33)\n・H28整備施設の入所率 86.1%(H27:82.8%)、うち3歳未満児95.2%（H27:94.6%)\n・H28整備施設の定員拡充数に占める既存施設の割合　55.2%(H27:76.3%)","⑧ その他","新たな施設整備は極力行わず、既存施設を最大限活用した整備を推進","幼保支援課"]
[null,null,null,null,null,"モノ","-","-","＜参考＞\n前年度決算額"]
[null,null,null,"他都市等の状況",null,"カネ","歳出予算額　1,048百万円\n（うち一般財源29百万円）",1048,"歳出決算額　288百万円（うち一般財源40百万円）"]
[null,null,null,"全指定都市及び県内市が実施"]
["２",null,"待機児童解消加速化プラン\n(認可移行予定認可外保育施設運営補助）\n","認可保育所への移行を計画する認可外保育施設に対し助成することにより、保育サービスの供給を増やし、待機児童の解消を図る。","認可基準を満たす見込みがあり、認可化を希望する認可外保育施設に対し、運営費を助成\n\n国の定める補助基準額（1施設当り13,448千円）","ヒト","職員1.05人\n（正規1.05人）",8,{"$f":"SUM(H16:H19)","v":308},"助成対象認可外施設\n34か所\n年間延入所児童数　11,194人\n\n（平成28年度）","平成２７年度に１６カ所、平成２８年度に１０カ所、平成２９年４月に１１カ所が認可外から認可化しており、移行が進んでいる。","⑧ その他","平成３１年４月までに認可施設に移行するよう指導する。","幼保運営課"]
[null,null,null,null,null,"モノ","-","-","＜参考＞\n前年度決算額"]
[null,null,null,"他都市等の状況",null,"カネ","歳出予算額　300百万円\n（うち一般財源157百万円）",300,"歳出決算額　457百万円（うち一般財源215百万円）"]
[null,null,null,"他政令市１2市が実施"]
["３",null,"民間保育園等給付・助成","民間保育施設の安定的な運営及び保育の質を確保し、サービスの充実を図る。","民間保育園等を対象に実施\n・子ども子育て支援法に基づく給付\n・運営費の助成\n","ヒト","職員28.04人\n（正規19.64人、非常勤嘱託6.4人、非常勤職員2.0人）",174,{"$f":"SUM(H20:H23)","v":15867},"給付・補助対象施設数\n・民間保育園90か所\n・認定こども園8か所\n・小規模保育26か所\n・事業所内6か所\n・家庭的保育５か所\n\n年間延入所児童数：\n99,214人\n\n（平成28年度）\n","・子ども・子育て新制度の施行により国・県負担による給付額が増額され、市費負担が減少した。\n・補助金については、保育サービスの充実の観点からあり方を検討するとともに、市保育士ＯＢによる巡回指導を強化し、保育の質の確保を図る。\n\n給付・補助対象施設数\n・民間保育園102か所\n・認定こども園20か所\n・民間幼稚園１か所\n・小規模保育３５か所\n・事業所内９か所\n・家庭的保育５か所\n年間延入所児童数：\n127,610人\n（平成29年度予算ベース）\n\nと増加しており、今後も保育需要は伸びる見込みで事業の必要性は高い。","⑤ 連携・協働","保育系短大等との連携により、保育の質の確保を図る。","幼保運営課"]
[null,null,null,null,null,"モノ","-","-","＜参考＞\n前年度決算額",null,null,"⑧ その他","国の給付・補助体系の変更等に応じ、補助メニューを適宜見直す。"]
[null,null,null,"他都市等の状況",null,"カネ","歳出予算額　15,711百万円\n（うち一般財源6,196百万円）",{"$f":"15711-18","v":15693},"歳出決算額　11,842百万円\n（うち一般財源3,743百万円）"]
[null,null,null,"全政令市で実施\n近隣政令市の１施設当たりの給付・補助平均額は、\n109百万円"]
["施策",null,null,"2-2-1","子育て支援の充実"]
["No.","新規","事務事業（業務）名","事務事業（業務）概要",null,"現状分析",null,null,null,"課題抽出",null,"今後の方向性",null,"所管課"]
[null,null,null,"目標（目的）","主な内容","事務事業（業務）に\n必要な行政資源",null,"コスト換算\n（単位：百万円）","行政コストの合計額\n（単位：百万円）","主な実績・効果","分析・評価","改善・改革の\n手法","今後の方向性"]
[null,null,null,"【（事務事業（業務）を行い）誰（何）が、どのような状態になることを目指すのか】","【サービス等の提供内容や提供先】",null,null,null,null,"【利用者数・件数等】","【現在どのような状態で、どのような課題があるのか】"]
["４",null,"公立保育所等管理運営","公立保育所・認定こども園の安定的な運営を確保し、保育サービスの充実を図る。","保育の提供","ヒト","職員　1624.99人\n(正規　968.99人、非常勤656人)",8423,{"$f":"SUM(H28:H31)","v":10078},"年間延入所児童数：\n84,415人\n(平成28年度）","老朽化した緑町保育所と大森保育所を、民設民営で建替える。（31.4開園）\n\n公立の役割として、\n・増加する民間施設に対し、保育のノウハウを提供する。\n・障害児や支援の必要な家庭の児童などを積極的に受け入れ、セーフティネットとしての役割を果たす。\nなどがあり、その必要性は高い。\n","⑤ 連携・協働","保育系短大等との連携により、保育の質の確保を図る。","幼保支援課\n幼保運営課"]
[null,null,null,null,null,"モノ","保育所等　59か所",171,"＜参考＞\n前年度決算額",null,null,"⑧ その他","少子化を踏まえ、最適なサービス体制を検討する。"]
[null,null,null,"他都市等の状況",null,"カネ","歳出予算額　2,653百万円\n（うち一般財源2,315百万円）\n【主なもの】\n非常勤職員賃金1,237百万円\n賄材料費　 613百万円",{"$f":"2653-1169","v":1484},"歳出決算額　2,851百万円\n（うち一般財源2,688百万円）"]
[null,null,null,"他政令市の公立施設数\n平均48施設"]
["5",null,"私立幼稚園就園奨励費補助","本市在住の私立幼稚園児の入園料・保育料を減免し、保護者の経済的負担の軽減を図る。","園児の保護者に対して助成する。\n\n国庫補助事業分：62,200～308,000円/年\n（所得制限あり）\n\n市単独補助事業分：15,000～28,000円/年\n（所得制限なし）","ヒト","職員　1.55人\n（正規0.55人、非常勤1.00人）",5,{"$f":"SUM(H32:H35)","v":1587},"補助対象者数：\n13,685人\n（平成28年度）\n","保護者の経済的負担軽減に大きく寄与している。\n\n補助対象者数及び補助対象園数が多く、事務負担が大きいが、非常勤職員の有効活用により、業務の効率化を図っている。",null,null,"幼保支援課"]
[null,null,null,null,null,"モノ","-","-","＜参考＞\n前年度決算額"]
[null,null,null,"他都市等の状況",null,"カネ","歳出予算額　1,584百万円\n（うち一般財源1,154百万円）",1582,"歳出決算額　1,784百万円（うち一般財源1,326百万円）"]
[null,null,null,"概ね全ての市町村で実施"]
["６",null,"私立幼稚園長時間預かり保育補助","長時間の預かり保育を実施する市内私立幼稚園に補助金を交付し、待機児童の解消に資するとともに、保護者の子育てを支援する。","開園時間（11時間/日、開園日数220日/年）等の要件を満たして長時間預かり保育を実施する私立幼稚園に対し、補助金を交付する。\n\n補助基準額：最大675万円\n基本額：300万円＋加算額：最大375万円\n※開園時間延長、受入園児数増、職員加配等により加算","ヒト","職員　0.25人\n（正規　0.25人）",2,{"$f":"SUM(H36:H39)","v":73},"補助対象園：14園\n対象園児数：\nア　保育を必要とする園児　530人\nイ　両親就労園児　91人\n\n（平成28年度）\n\n","・待機児童解消に寄与しており、保育を必要とする園児の利用人数は増加傾向\n\n・実施園の認定こども園移行を促進するとともに、市単事業から国庫補助事業にシフトしていく必要がある。\n\n・国の幼稚園型一時預かり事業を活用して国費・県費を確保し、一般財源の削減を図った","③ 整理統合","平成30年度末をもって廃止する。","幼保支援課"]
[null,null,null,null,null,"モノ","-","-","＜参考＞\n前年度決算額"]
[null,null,null,"他都市等の状況",null,"カネ","歳出予算額　71百万円\n（うち一般財源45百万円）",71,"歳出決算額　67百万円（うち一般財源39百万円）"]
[null,null,null,"他政令市７市が長時間預かり保育に対する補助を実施"]
["施策",null,null,"2-2-1","子育て支援の充実"]
["No.","新規","事務事業（業務）名","事務事業（業務）概要",null,"現状分析",null,null,null,"課題抽出",null,"今後の方向性",null,"所管課"]
[null,null,null,"目標（目的）","主な内容","事務事業（業務）に\n必要な行政資源",null,"コスト換算\n（単位：百万円）","行政コストの合計額\n（単位：百万円）","主な実績・効果","分析・評価","改善・改革の\n手法","今後の方向性"]
[null,null,null,"【（事務事業（業務）を行い）誰（何）が、どのような状態になることを目指すのか】","【サービス等の提供内容や提供先】",null,null,null,null,"【利用者数・件数等】","【現在どのような状態で、どのような課題があるのか】"]
["７",null,"私立幼稚園教材費補助","私立幼稚園における教材費購入費用に対する補助金を交付し、幼稚園教育の振興と保護者負担軽減を図る。","補助基準額\n園割額：344千円\n園児割額：1千円\n預かり保育加算：\n150～300千円（年間延べ利用人数に応じて補助額を加算）","ヒト","職員　0.10人\n（正規　0.10人）",1,{"$f":"SUM(H44:H47)","v":68},"補助対象園：87園\n（平成28年度）\n\n","・教材費に係る園の負担軽減により、市内全園の教育の質の向上に寄与している。\n\n・教育の質のさらなる向上を図るため、補助制度の拡充が求められている。\n\n",null,null,"幼保支援課",null,null,null,null,null,null,"① 調達改革",null,"1-1-1","緑と水辺の保全・活用"]
[null,null,null,null,null,"モノ","-","-","＜参考＞\n前年度決算額",null,null,null,null,null,null,null,null,null,null,null,"② 課題抑制",null,"1-1-2","やすらぎとにぎわいのある海辺の創出"]
[null,null,null,"他都市等の状況",null,"カネ","歳出予算額　67百万円\n（うち一般財源67百万円）",67,"歳出決算額　66百万円（うち一般財源66百万円）",null,null,null,null,null,null,null,null,null,null,null,"③ 整理統合",null,"1-2-1","公園緑地の充実"]
[null,null,null,"他政令市13市が教材費に対する補助実施\n（Ｈ28時点）\n※補助対象を教材費に限定しない制度を含む。\n",null,null,null,null,null,null,null,null,null,null,null,null,null,null,null,null,"④ アウトソーシング",null,"1-2-2","都市緑化の推進"]
["８",null,"子どもルーム運営・整備","就労等により昼間家庭に保護者のいない児童の健全育成を図る。","授業が終わった後の遊び及び生活の場を提供する。","ヒト","職員11.63人\n（正規5.55人、区4.28人、非常勤1.80人）",79759,{"$f":"SUM(H48:H51)","v":82478},"年間利用児童数\n101,543人\n（平成28年度）\n\n開設数\n106小学校区160か所\n（平成29年4月1日時点）\n（放課後子ども教室との一体型を含めると107小学校区161か所）","就労等により昼間家庭に保護者のいない児童の放課後の遊び及び生活の場として寄与しているが、児童数の多い小学校では利用児童数も多く、待機児童が発生している。\n\n受入れ学年の拡大に伴い、必要に応じて高学年ルームの整備を進めるとともに、低学年の待機児童対策のため、子どもルーム整備を引続き検討する必要がある。","④ アウトソーシング","委託先の多様化は一体型を基本とし、教育委員会と調整していく。\nなお、将来的な一体型への移行を視野に入れ、４か所の子どもルームについて、平成３０年度から社会福祉協議会以外の民間事業者に委託する。","健全育成課",null,null,null,null,null,null,"⑤ 連携・協働",null,"1-2-3","花のあふれるまちづくりの推進"]
[null,null,null,null,null,"モノ","子どもルーム　76か所　　　　　　　　　　　　　　　　　　　　　　　　　　　　　　　　　　　　　　　　　　　　　　　　　　　　　　　　　　　　　　　　　　　　　　　　　　　　　　　　　　　　　　　　　　　　　　　　　　　　　　　　　　　　　　　　　　　　　　　　　　　　　　　　　　（うち教室18か所、建物58か所）　　　　　　　　　　　　　　　　　　　　　　　　　　　　　　　　　　　　　　　　　　　　　　　　　　　　　　　　　　　　　　　　　　　　　　　　　　　　　　　　　　　　　　　　　　　　　　　　　　　　　　　　　　　　　　　　　　　　　　　　　　　　　　　　　　　　　　　　　　　　　　　　　　　　　　　　　　　　　　　　　　　　　　　　　　　　　　　　　　　　　　　　　　　　　　　　　　　　　　　　　　　　　　　　　　　　　　　　　　　　　　　　　　　　　　　　　　　　　　　",84,"＜参考＞\n前年度決算額",null,null,"⑦ 資産活用","校外賃借（土地・建物）物件の校内移転を進める。",null,null,null,null,null,null,null,"⑥ ＩＣＴ活用",null,"1-3-1","低炭素社会の実現に向けた取組みの推進"]
[null,null,null,"他都市等の状況",null,"カネ","歳出予算額2,639百万円\n（うち一般財源1,139百万円）\n【主なもの】\n委託料2,400百万円\n賃借料143百万円",2635,"歳出決算額　2,278百万円（うち一般財源920百万円）",null,null,null,null,null,null,null,null,null,null,null,"⑦ 資産活用",null,"1-3-2","循環型社会の実現に向けた取組みの推進"]
[null,null,null,"【公設公営】（１市）\n福岡市\n【公設公営・民設民営】\n（２市）\n相模原市、広島市\n【公設民営】（５市）\n川崎市、静岡市、浜松市、堺市、北九州市\n【公設民営・民設民営】\n（９市）\n札幌市、仙台市、さいたま市、新潟市、名古屋市、京都市、神戸市、岡山市、熊本市\n【民設民営】（２市）\n横浜市、大阪市",null,null,null,null,null,null,null,null,null,null,null,null,null,null,null,null,"⑧ その他",null,"1-3-3","良好な生活環境の確保"]
["９",null,"病児・病後児保育","保護者が就労、疾病、冠婚葬祭などの理由で家庭での育児が困難な場合に、安心して児童を預け、就労等ができるようになる。\n\n","病気回復期などのため、他の児童との集団生活が困難な小学生までの児童に対し、市内８か所の医療機関に併設された施設で、病児保育を実施する。","ヒト","職員0.60人",5,{"$f":"SUM(H52:H55)","v":151},"年間延べ利用者数：\n5,906人\n（平成28年度）\n\n","・病気・病児回復期の児童を対象とする保育は、市の施策で当該事業のみであり、ニーズは高い。\n\n・季節的な需要の変動や児童の病状の回復等による予約キャンセルなど、利用者数の変動が大きく、安定した経営が困難な状況で、新規開設医院がほとんどない。\n\n・市民ニーズの高い場所に施設を配置する必要から、効率性をあげることは難しいが、突然のキャンセルを抑制する施策を組むことなどにより、新規参入を促し、有効性の高い場所に施設を配置したい。","⑧ その他","多角的な視点から新規事業者の確保策を検討し、事業拡充を図る。","幼保支援課",null,null,null,null,null,null,null,null,"1-3-3","環境保全・創造活動の推進"]
[null,null,null,null,null,"モノ","-","-","＜参考＞\n前年度決算額",null,null,null,null,null,null,null,null,null,null,null,null,null,"2-1-1","健康づくりの推進"]
[null,null,null,"他都市等の状況",null,"カネ","歳出予算額146百万円\n（うち一般財源60百万円）",146,"歳出決算額　120百万円（うち一般財源49百万円）",null,null,null,null,null,null,null,null,null,null,null,null,null,"2-1-2","医療体制の充実"]
[null,null,null,"全政令市で実施",null,null,null,null,null,null,null,null,null,null,null,null,null,null,null,null,null,null,"2-1-3","食の安全と環境衛生の推進"]
["施策",null,null,"2-2-1","子育て支援の充実",null,null,null,null,null,null,null,null,null,null,null,null,null,null,null,null,null,"2-2-1","子育て支援の充実"]
["No.","新規","事務事業（業務）名","事務事業（業務）概要",null,"現状分析",null,null,null,"課題抽出",null,"今後の方向性",null,"所管課",null,null,null,null,null,null,null,null,"2-2-2","こどもの健全育成の推進"]
[null,null,null,"目標（目的）","主な内容","事務事業（業務）に\n必要な行政資源",null,"コスト換算\n（単位：百万円）","行政コストの合計額\n（単位：百万円）","主な実績・効果","分析・評価","改善・改革の\n手法","今後の方向性",null,null,null,null,null,null,null,null,null,"2-3-1","地域福祉の充実"]
[null,null,null,"【（事務事業（業務）を行い）誰（何）が、どのような状態になることを目指すのか】","【サービス等の提供内容や提供先】",null,null,null,null,"【利用者数・件数等】","【現在どのような状態で、どのような課題があるのか】",null,null,null,null,null,null,null,null,null,null,null,"2-4-1","介護予防と生きがいづくりの促進"]
["１０",null,"地域子育て支援拠点","小学校就学前までの児童とその保護者等に、子育ての不安・悩みなどの相談の場や、子育て親子の交流の場、子育てに関する専門的な支援を受ける場として利用してもらい、子育てを行う親の不安感や負担が解消・軽減されるようにする。\n","市内20か所（子育て支援館１、地域子育て支援センター７、子育てリラックス館12）で以下を実施\n\n・親子のふれあいの場・遊ぶ場の提供\n・子育てに関する相談\n・子育てサークルの育成・支援\n・子育て関連情報の提供、講習の実施\n※子育て支援館では、利用者支援やﾌｧﾐﾘｰ・ｻﾎﾟｰﾄ・ｾﾝﾀｰ事業も実施","ヒト","職員2.1人（正規0.6人、非常勤1.5人）",6,{"$f":"SUM(H60:H63)","v":236},"年間延べ利用者数：\n合計　277,726人\n\n子育て支援館\n71,724人\n地域子育て支援ｾﾝﾀｰ74,613人\n子育てリラックス館\n131,389人\n\n（平成28年度）\n","・こどもプランでは、31年度までに24カ所にする予定であるが、費用面で新規参入者が見込めない状況である。\n\n・新たに施設を設置したい場所に公共施設等の空きスペースが見つかった場合は、それを活用したリラックス館の設置を検討するとともに、現在設置しているリラックス館についても検討していく。","⑦ 資産活用","公共施設等の空きスペースの活用等を検討する。","幼保支援課",null,null,null,null,null,null,null,null,"2-4-2","地域生活支援の充実（高齢者）"]
[null,null,null,null,null,"モノ","子育て支援館",16,"＜参考＞\n前年度決算額",null,null,null,null,null,null,null,null,null,null,null,null,null,"2-4-3","介護保険サービスの充実"]
[null,null,null,"他都市等の状況",null,"カネ","歳出予算額214百万円\n（うち一般財源94百万円）",214,"歳出決算額　210百万円（うち一般財源98百万円）",null,null,null,null,null,null,null,null,null,null,null,null,null,"2-5-1","療育体制と相談支援の充実"]
[null,null,null,"全政令市で実施",null,null,null,null,null,null,null,null,null,null,null,null,null,null,null,null,null,null,"2-5-2","地域生活支援の充実（障害のある人）"]
["１１",null,"子ども医療費助成","子どもが健康に育つとともに、その保護者が安心して子育てできるようになる。","中学校修了前の子どもを対象に、保険診療の範囲内での医療費自己負担額の一部または全額の助成","ヒト","職員12.29人\n（正規6.28人、非常勤6.01人）",54,{"$f":"SUM(H64:H67)","v":3246},"助成件数\n通院：1,786,676件\n入院：     7,421件\n（平成28年度）","地方の財政力に応じてサービス水準に格差が生じることは望ましくないことから、本来、国が主体的に取り組むべきとものとして、国に対し本制度の創設を要望している。","③ 整理統合","総合窓口での申請受付等による業務の集約化及びアウトソーシングを行う。","こども企画課",null,null,null,null,null,null,null,null,"2-5-3","就労支援と社会参加の促進"]
[null,null,null,null,null,"モノ","-","-","＜参考＞\n前年度決算額",null,null,"④ アウトソーシング","同上",null,null,null,null,null,null,null,null,null,"3-1-1","学校教育の振興"]
[null,null,null,"他都市等の状況",null,"カネ","歳出予算額3,201百万円\n（一般財源　2,693百万円）\n【主なもの】\n扶助費：3,042百万円\n",3192,"歳出決算額　3,216百万円（うち一般財源2,699百万円）",null,null,null,null,null,null,null,null,null,null,null,null,null,"3-1-2","地域の教育力の向上"]
[null,null,null,"全国の自治体で同様の事業を実施",null,null,null,null,null,null,null,null,null,null,null,null,null,null,null,null,null,null,"3-1-3","こどもの参画の推進"]
["１２",null,"児童手当支給","家庭等における生活の安定に寄与するとともに、次代を社会を担う児童の健やかな成長に資することを目的とする。","中学校修了前の子どもに対し、児童1人当たり月額5,000円、10,000円または15,000円を支給","ヒト","職員20.98人\n（正規6.58人、非常勤14.40人）",68,{"$f":"SUM(H68:H71)","v":14757},"支給延べ児童数：1,399,045人\n支給額：14,543百万円\n（平成28年度）\n","現況届の受付等を1か所で集中的に行うなど、アウトソーシングの余地がある。\n","③ 整理統合","総合窓口での申請受付等による業務の集約化及びアウトソーシングを行う。","こども企画課",null,null,null,null,null,null,null,null,"3-2-1","生涯学習の推進"]
[null,null,null,null,null,"モノ","-","-","＜参考＞\n前年度決算額",null,null,"④ アウトソーシング","同上",null,null,null,null,null,null,null,null,null,"3-2-2","スポーツ・レクリエーション活動の推進"]
[null,null,null,"他都市等の状況",null,"カネ","歳出予算額14,711百万円\n（一般財源　2,283百万円）\n【主なもの】\n扶助費：14,650百万円",14689,"歳出決算額　14,620百万円（うち一般財源2,204百万円）",null,null,"⑥ ＩＣＴ活用","マイナンバーカードを用いてオンラインで申請手続を行うことができる「子育てワンストップサービス」の運用開始",null,null,null,null,null,null,null,null,null,"3-3-1","文化・芸術の振興"]
[null,null,null,"市町村の法定受託事務",null,null,null,null,null,null,null,null,null,null,null,null,null,null,null,null,null,null,"3-3-2","文化的財産の保全と活用"]
["施策",null,null,"2-2-2","こどもの健全育成の推進",null,null,null,null,null,null,null,null,null,null,null,null,null,null,null,null,null,"3-4-1","国際化の推進"]
["No.","新規","事務事業（業務）名","事務事業（業務）概要",null,"現状分析",null,null,null,"課題抽出",null,"今後の方向性",null,"所管課",null,null,null,null,null,null,null,null,"3-4-2","大学・企業等との連携の推進"]
[null,null,null,"目標（目的）","主な内容","事務事業（業務）に\n必要な行政資源",null,"コスト換算\n（単位：百万円）","行政コストの合計額\n（単位：百万円）","主な実績・効果","分析・評価","改善・改革の\n手法","今後の方向性",null,null,null,null,null,null,null,null,null,"3-5-1","市民参加・協働の推進"]
[null,null,null,"【（事務事業（業務）を行い）誰（何）が、どのような状態になることを目指すのか】","【サービス等の提供内容や提供先】",null,null,null,null,"【利用者数・件数等】","【現在どのような状態で、どのような課題があるのか】",null,null,null,null,null,null,null,null,null,null,null,"3-5-2","男女共同参画の推進"]
["1",null,"少年自然の家運営\n","・自然環境における宿泊を伴う集団生活及び体験活動を通じて、少年の健全な育成を図ることができる。\n・年間６万人の利用を見込んでいる。\n","利用者\n・小・中・特別支援学校\n・中学生までの子どもを含む少年団体・グループ・家族　など\n\n利用内容\n・宿泊を伴う集団生活\n・自然観察その他の自然に親しむ活動\n・環境に関する学習\n・野外活動、体育及びレクリエーション活動","ヒト","職員0.4人\n（正規0.4人）",6,{"$f":"SUM(H76:H79)","v":435},"・年間利用者数\n（28年度）　85,739人\n\n","・青少年の自然体験や宿泊体験、体験学習は、教育的価値が高く、青少年の健全育成に大きく寄与している。\n\n・事業運営業務や維持管理業務はＰＦＩ事業者が実施しているため、市職員及び専門業者のモニタリングにより常に事業実施状況等の監視・評価を行い、必要に応じて指導・勧告をする必要がある。\n\n・民間事業者のノウハウや資金の活用により、施設・設備の維持管理業務や事業運営業務が適切に実施されている。\n\n・現在のPFI特定事業契約が3年後に終了するため、次期管理形態を検討する必要がある。","④ アウトソーシング","次期管理形態については、PFIや指定管理者制度など、民間事業者のノウハウや資金を活用した形態を検討する。","健全育成課",null,null,null,null,null,null,null,null,"4-1-1","防災対策の推進"]
[null,null,null,null,null,"モノ","少年自然の家　　",110,"＜参考＞\n前年度決算額",null,null,null,null,null,null,null,null,null,null,null,null,null,"4-1-2","防災体制の充実"]
[null,null,null,"他都市等の状況",null,"カネ","歳出予算額832百万円\n（うち一般財源832百万円）\n【主なもの】\nサービス購入費318百万円\n公有財産購入費513百万円\nＰＦＩ事業モニタリング業務委託　2百万円",{"$f":"832-513","v":319},"歳出決算額　833百万円（うち一般財源833百万円）",null,null,null,null,null,null,null,null,null,null,null,null,null,"4-1-3","消防・救急体制の充実"]
[null,null,null,"他政令市では、本市の「少年自然の家」に類似する施設をＰＦＩ事業によって建設・運営しているところはない。\n仙台市、横浜市、相模原市、浜松市、名古屋市、大阪市、堺市、広島市、北九州市、福岡市など類似する施設を所有する多くの政令市は、指定管理者制度を導入して運営をしている。",null,null,null,null,null,null,null,null,null,null,null,null,null,null,null,null,null,null,"4-1-4","交通安全の推進"]
["2",null,"子ども交流館管理運営","　子どもの健全な育成と交流を図るための居場所としての役割を果たす。","利用者\n主に高校生以下\n\n事業内容\n・子どもの健全な遊びと居場所の提供\n・子どもの健全な育成を目的とした講座等の開催\n・子どもの自主サークルその他の自主活動の支援\n・子どもの遊びと居場所づくりに関する情報の提供","ヒト","職員0.50人\n（正規0.50人）",4,{"$f":"SUM(H80:H83)","v":211},"延べ利用者数：154,820人\n（平成28年度）","・施設の広報活動、講座等が良好に運営されており、来館者数は過去最高だった平成２７年度を上回る154千人だった。\n\n・こども達にとって、心地が良い居場所となっており、本市のこども施策（こどものまちＣＢＴ、ワークショップ、フォーラム、児童福祉週間等）の実施において貢献している。\n\n・施設が、中央区に所在するため、中央区以外に在住する子どもの利用が比較的少なく、他区在住者のより一層の利用促進を図る必要がある。\n\n・無料施設であるが、受益者負担についても検討する必要がある。",null,null,"こども企画課",null,null,null,null,null,null,null,null,"4-1-5","防犯対策の推進"]
[null,null,null,null,null,"モノ","子ども交流館",73,"＜参考＞\n前年度決算額",null,null,null,null,null,null,null,null,null,null,null,null,null,"4-1-6","消費生活の安定・向上"]
[null,null,null,"他都市等の状況",null,"カネ","歳出予算額　134百万円\n（うち一般財源　134百万円）\n【主なもの】\n委託料：95百万円",134,"歳出決算額　134百万円（うち一般財源134百万円）",null,null,null,null,null,null,null,null,null,null,null,null,null,"4-2-1","市街地の整備"]
[null,null,null,"他政令市も概ね同種施設を設置",null,null,null,null,null,null,null,null,null,null,null,null,null,null,null,null,null,null,"4-2-2","計画的な土地利用の推進"]
["3",null,"母子家庭等医療費助成","ひとり親家庭等の父母等が健康を保ち、監護・養育する児童が健やかに成長ができるよう、経済的負担を軽減し、生活の安定と自立を支援する。","医療機関で受診した際に係る医療費の自己負担分の助成\n（保険診療の範囲内で全額助成）\n\n母子家庭の母と児童、\n父子家庭の父と児童、\n父母のいない家庭の\n児童とその養育者\n（配偶者がいない場合のみ）\n\n※児童が18歳に到達する年度末まで\n※所得制限あり","ヒト","職員4.01人\n（正規4.01人）",29,{"$f":"SUM(H84:H87)","v":247},"母子家庭等 5,210世帯\n助成件数　72,773件\n父子家庭　　　184世帯\n助成件数　　1,699件\n（平成28年度）\n\n","・ひとり親家庭や父母のいない児童が養育される家庭等の経済的負担を軽減し、生活の安定と自立を支援する施策として有効\n\n・現状の助成方法は、償還払いであり、対象者の利便性を図るため、現物給付化を目指しているが、県下一斉の実施でなければ、現物給付を実現できない状況である。\n","⑧ その他","本市単独での現物給付化は実現不可能なため、引き続き、県に対して現物給付化の要望をしていく。","こども家庭支援課",null,null,null,null,null,null,null,null,"4-2-3","良好な都市景観の形成"]
[null,null,null,null,null,"モノ","－","-","＜参考＞\n前年度決算額",null,null,null,null,null,null,null,null,null,null,null,null,null,"4-2-4","住宅・住環境の充実"]
[null,null,null,"他都市等の状況",null,"カネ","歳出予算額　218百万円\n（うち一般財源　218百万円）\n【主なもの】\n扶助費　215百万円",218,"歳出決算額　206百万円（うち一般財源　206百万円）",null,null,null,null,null,null,null,null,null,null,null,null,null,"4-2-5","生活基盤の充実"]
[null,null,null,"千葉県内市町村\n全政令指定都市で実施",null,null,null,null,null,null,null,null,null,null,null,null,null,null,null,null,null,null,"4-3-1","公共交通ネットワークの形成"]
["施策",null,null,"2-2-2","こどもの健全育成の推進",null,null,null,null,null,null,null,null,null,null,null,null,null,null,null,null,null,"4-3-2","道路ネットワークの形成"]
["No.","新規","事務事業（業務）名","事務事業（業務）概要",null,"現状分析",null,null,null,"課題抽出",null,"今後の方向性",null,"所管課",null,null,null,null,null,null,null,null,"4-3-3","人にやさしい移動環境の創出"]
[null,null,null,"目標（目的）","主な内容","事務事業（業務）に\n必要な行政資源",null,"コスト換算\n（単位：百万円）","行政コストの合計額\n（単位：百万円）","主な実績・効果","分析・評価","改善・改革の\n手法","今後の方向性",null,null,null,null,null,null,null,null,null,"4-3-4","ＩＣＴを活かした利便性の向上"]
[null,null,null,"【（事務事業（業務）を行い）誰（何）が、どのような状態になることを目指すのか】","【サービス等の提供内容や提供先】",null,null,null,null,"【利用者数・件数等】","【現在どのような状態で、どのような課題があるのか】",null,null,null,null,null,null,null,null,null,null,null,"5-1-1","都心などの魅力向上"]
["4",null,"児童扶養手当支給","ひとり親家庭等の生活の安定と自立を助け、監護・養育する児童の心身ともに健やかな成長を支援する。\n","手当の支給\n（所得や監護・養育する児童の人数による。）\n\n母子家庭の母、\n父子家庭の父、\n養育者\n\n※所得制限あり","ヒト","職員5.77人\n（正規5.77人）",41,{"$f":"SUM(H92:H95)","v":2982},"延受給者数　75,232人\n（平成28年度）\n\n","・ひとり親家庭や父母のいない児童が養育される家庭等の生活の安定と自立及び児童の福祉の促進を図る支援する施策として有効\n\n・毎年、現況の確認を要するため、提出書類の準備や窓口への来所が必要となるなど、対象者にとって、手続きによる負担がある。\nマイナンバー制度の活用等で、手続きの負担をどの程度まで軽減できるかが課題である。",null,null,"こども家庭支援課",null,null,null,null,null,null,null,null,"5-1-2","都市の国際性の向上"]
[null,null,null,null,null,"モノ","－","-","＜参考＞\n前年度決算額",null,null,null,null,null,null,null,null,null,null,null,null,null,"5-1-3","観光の振興と魅力の創出・発信"]
[null,null,null,"他都市等の状況",null,"カネ","歳出予算額　2,941百万円\n（うち一般財源　1,963百万円）\n【主なもの】\n扶助費　2,937百万円",2941,"歳出決算額　2,863百万円（うち一般財源　1,881百万円）",null,null,null,null,null,null,null,null,null,null,null,null,null,"5-2-1","産業の振興"]
[null,null,null,"法律に基づく事業",null,null,null,null,null,null,null,null,null,null,null,null,null,null,null,null,null,null,"5-2-2","新事業の創出"]
["5",null,"母子父子寡婦福祉資金貸付金","ひとり親家庭等の経済的自立を支援するとともに生活意欲を促進し、その扶養している児童の福祉を増進する。","事業開始資金、事業継続資金、修学資金、技能習得資金、就業資金、就職支度資金、医療介護資金、生活資金、住宅資金、転宅資金、就学支度資金、結婚資金の貸し付けを行う。\n\n配偶者のない女子で、現に児童（20歳未満）を扶養している母子家庭の母及び、配偶者のない男子で、現に子（20歳未満）を扶養している父子家庭の父並びにかつて母子家庭の母として児童を扶養していたことのある者（子が20歳以上）","ヒト","職員4.56人\n（正規0.60人、非常勤3.96人）",17,{"$f":"SUM(H96:H99)","v":346},"・母子福祉資金\n　380件／258,831千円\n\n・父子福祉資金\n　 5件／2,997千円\n\n・寡婦福祉資金\n　17件／10,454千円\n\n（平成28年度）\n\n","・ひとり親家庭や寡婦の方の経済的自立の支援策として有効\n\n・貸付金の回収率を高めるため、徴収員を平成25年度に設置したところ、徴収率が上がってきている。\n（平成28年度）\n現年度徴収率　85.2％\nのうち徴収員分　1.1％\n過年度徴収率　12.3％\nのうち徴収員分　7.5％\n\n・引き続き、滞納者・保証人への連絡を強化し、徴収率を上げていく必要がある。","⑧ その他","アウトソーシングによる債権回収の検討を行ったが、1回の債権額が少額のため、手数料などの経費が大きくなり、費用対効果の面で課題がある。\nほかに効果的な方法がないかを検討していく。","こども家庭支援課",null,null,null,null,null,null,null,null,"5-3-2","安定した農業経営体の育成"]
[null,null,null,null,null,"モノ","－","-","＜参考＞\n前年度決算額",null,null,null,null,null,null,null,null,null,null,null,null,null,"5-3-3","農村と森林の持つ多面的機能の活用"]
[null,null,null,"他都市等の状況",null,"カネ","歳出予算額　330百万円\n特別会計\n（一般会計から繰入金\n　24百万円）\n【主なもの】\n貸付金　328百万円",329,"歳出決算額　280百万円（うち一般財源　0円）",null,null,null,null,null,null,null,null,null,null,null,null,null,"9-9-9","その他"]
[null,null,null,"法律に基づく事業"]
["6",null,"児童相談所管理運営","子ども本人、家族その他関係機関等からの相談に適切に対応し、子どもの安心・安全な生活を確保する。","18歳未満の児童や家庭等の様々な相談について、その内容に応じ、社会診断、心理診断及び一時保護等を行う。","ヒト","職員　73.80人\n（正規53.00人、非常勤20.80人）","492",{"$f":"SUM(H100:H103)","v":0},"相談受理件数　5,748件\n虐待対応件数　1,135件\n保護児童数　　　 243人\n平均保護日数　　46.1日\n里親等委託率　23．1％\n（平成28年度）\n","・虐待対応件数の増加及び法的対応を要する等対応困難事案が増加し、それに伴い一時保護日数も増加している。\n・社会的養護を必要とする児童に対し、国は平成４１年度までに、里親等委託率１／３を数値目標として定め、市でも第２次実施計画において、２９年度末までに２５％とすることを目標としており、ＮＰＯとの協働事業を取り入れながら、里親制度を推進している。\n・里親制度推進に伴い、支援体制を強化する必要がある。里親登録数及び里親等委託率の向上。\n・一時保護所の定員超過が続いており、ハード面、ソフト面ともに児童の生活環境の改善が必要である。\n・虐待通告への48時間以内対応のため、体制の維持が必要である。\n\n","④ アウトソーシング","里親制度推進事業におけるＮＰＯとの協働、夜間虐待対応の外部委託化等、外部機関の活用・検討を進める。","児童相談所"]
[null,null,null,null,null,"モノ","児童相談所\n（一時保護所含む）","44","＜参考＞\n前年度決算額",null,null,"⑤ 連携・協働"]
[null,null,null,"他都市等の状況",null,"カネ","歳出予算額176百万円\n（うち一般財源131百万円）\n【主なもの】\n非常勤嘱託職員等人件費75百万円\n委託料42百万円","100","歳出決算額　184百万円（うち一般財源125百万円）"]
[null,null,null,"・一時保護所職員一人当たりの保護児童数（定員）\n3.9人で全政令市・児童相談所設置市中、最多\n\n・虐待対応：札幌市で児童家庭支援センターに委託\n\n・里親推進：福岡市、静岡市等でＮＰＯ委託"]
["施策",null,null,"2-2-2","こどもの健全育成の推進"]
["No.","新規","事務事業（業務）名","事務事業（業務）概要",null,"現状分析",null,null,null,"課題抽出",null,"今後の方向性",null,"所管課"]
[null,null,null,"目標（目的）","主な内容","事務事業（業務）に\n必要な行政資源",null,"コスト換算\n（単位：百万円）","行政コストの合計額\n（単位：百万円）","主な実績・効果","分析・評価","改善・改革の\n手法","今後の方向性"]
[null,null,null,"【（事務事業（業務）を行い）誰（何）が、どのような状態になることを目指すのか】","【サービス等の提供内容や提供先】",null,null,null,null,"【利用者数・件数等】","【現在どのような状態で、どのような課題があるのか】"]
["7",null,"児童福祉施設等措置","社会的養護を必要とする児童等が安定した環境で生活し、自立できるよう支援する。","法に基づき保護を要する児童等の養護を児童福祉施設等に委託する。","ヒト","職員1.52人\n（正規1.52人）",10,{"$f":"SUM(H108:H111)","v":1042},"・母子生活支援施設\n延世帯数　　　281世帯\n・助産施設\n延人数　　　　　43人\n・児童養護施設\n延児童数　　1,428人\n・児童自立支援施設\n延児童数　　　 57人\n・乳児院\n延児童数　　　150人\n・里親\n延児童数　　　292人\n・援助ホーム\n延児童数　　　62人\n・ファミリーホーム\n延児童数　　　155人\n（平成28年度）　　　","・大規模な施設養護を中心とした形態から一人一人の子どもをきめ細やかに育み、「あたりまえの生活」を保障するため、里親等への委託や施設の小規模化等の家庭的養護の推進が必要となっている。\n\n・社会的養護を必要とする児童等が安定した環境で生活し、自立できるよう支援する施策として有効\n\n・より家庭的な生活がおくれるよう、里親・ファミリーホームへの委託の推進、施設の小規模化を図る。",null,null,"こども家庭支援課"]
[null,null,null,null,null,"モノ","－","-","＜参考＞\n前年度決算額"]
[null,null,null,"他都市等の状況",null,"カネ","歳出予算額　1,032百万円\n（うち一般財源　539百万円）\n【主なもの】\n委託料　1,032百万円",1032,"歳出決算額　996百万円（うち一般財源517百万円）"]
[null,null,null,"法律に基づく事業"]
[]
["施策",null,null,"3-1-3",{"$f":"IF(D113=\"\",\"←施策番号を選択してください。\",VLOOKUP($D113,$W$44:$X$98,2,1))","v":"こどもの参画の推進"}]
["No.","新規","事務事業（業務）名","事務事業（業務）概要",null,"現状分析",null,null,null,"課題抽出",null,"今後の方向性",null,"所管課"]
[null,null,null,"目標（目的）","主な内容","事務事業（業務）に\n必要な行政資源",null,"コスト換算\n（単位：百万円）","行政コストの合計額\n（単位：百万円）","主な実績・効果","分析・評価","改善・改革の\n手法","今後の方向性"]
[null,null,null,"【（事務事業（業務）を行い）誰（何）が、どのような状態になることを目指すのか】","【サービス等の提供内容や提供先】",null,null,null,null,"【利用者数・件数等】","【現在どのような状態で、どのような課題があるのか】"]
["1",null,"こどもの参画推進","子どもの意見を市政やまちづくりに反映することにより、千葉市を活性化するとともに、子どもが将来的に市政やまちづくりに積極的に参画する大人へと成長する。","参画モデル事業として、以下を実施\n\n①「こども・若者の力ワークショップ」\n子どもを取り巻く様々な課題について、子ども、市民、専門家、行政がともに考え、市への提言をまとめる。\n②「こども・若者選挙」\n未来の有権者である高校生が、実現させたい提案を選挙により選定する。\n③「こども・若者サミット」\n子どもの社会参画に積極的な首長を招き、パネルディスカッションを開催。また、上記①、②の成果を発表する場\n④「こどものまちCBT」\n子どもが自分たちで企画する”まち”を運営する。","ヒト","職員3.00人\n（正規3.00人）",29,{"$f":"SUM(H117:H120)","v":32},"参加者数\n①こども・若者の力ワークショップ\n　　延べ134人\n②こども・若者選挙\n　・投票者数2,866人\n　・生徒数5,472人\n　・投票率52.38％\n③こども・若者の力フォーラム　192人\n④こどものまちCBT\n　　1,062人\n\n（平成28年度）","現在は、当課でモデル事業として実施しているこどもの参画事業を、全市（全庁及び地域）の自主的な実施へと展開していく必要がある。\n\n事業目的を達成するためには、より多くの子ども・若者の参画が必要となる。「こどもの参画事業」の全市展開のため、こどもの参画が可能な事業については、庁内他部局等が主体的に取り組めるように促す必要がある。","⑤ 連携・協働","こどもの参画「チェックシート」で、全庁のこどもの参画の取組み及び程度を把握し、全庁の主体的取組みを促す。","こども企画課"]
[null,null,null,null,null,"モノ","-","-","＜参考＞\n前年度決算額"]
[null,null,null,"他都市等の状況",null,"カネ","歳出予算額3百万円\n（うち一般財源　3百万円）\n【主なもの】\n委託料：3百万円",3,"歳出決算額　3百万円（うち一般財源3百万円）"]
[null,null,null,"定型的な事業でないため画一的な比較はできないが、多くの自治体でワークショップやこどものまちといったこどもの参画事業の取組を行っている。"]